Workbook

Sheet Serventes
A1: ANEXO C
A3: PLANILHAS DE PROPOSTA DE PREÇO
A4: Planilha de Proposta de Preço
A5: Processo nº:
A6: Licitação nº____________ Pregão Eletrônico nº ____/2013
A7: Dia _______/_____________/____________ às _____:_____ horas
A8: Data da apresentação da proposta ___/___/2013
A9: Município/UF: Brasília/ DF
A10: Ano Acordo, Convenção Coletiva ou Sentença Normativa em Dissídio Coletivo. 2013
A11: Nº de meses de execução contratual: 12 meses
A12: Item | B12: Posto | C12: Custo Estimado por posto | D12: Quantidade de postos | E12: Valor mensal | F12: Valor anual
A13: 1 | B13: Servente | C13: =E167 ->  | D13: 1 | E13: =C177 ->  | F13: =C178 -> 935061.1178
A14: Total Item 1
A16: E | B16: RESPONSÁVEL PELO PROJETO
B17: Unidade de Serviços Auxiliares.
A19: PLANILHA DE COMPOSIÇÃO DE CUSTOS E FORMAÇÃO DE PREÇOS
A21: MÃO-DE-OBRA VINCULADA À EXECUÇÃO CONTRATUAL
A23: Planilha de Proposta de Preço
B24: Processo nº:
B25: Licitação nº__________ Pregão Eletrônico nº ____/2013
A26: Dia _______/_____________/____________ às _____:_____ horas
A28: A | B28: Data da apresentação da proposta | C28: ___/___/2013
A29: B | B29: Município/UF | C29: Brasília/ DF
A30: C | B30: Ano Acordo, Convenção Coletiva ou Sentença Normativa em Dissídio Coletivo. | C30: 2013
A31: D | B31: Nº de meses de execução contratual | C31: 12 meses
A33: Mão-de-obra vinculada à execução contratual
A34: Dados complementares para composição dos custos referente à mão-de-obra
A35: 1 | B35: Tipo de serviço | C35: Limpeza e conservação
A36: 2 | B36: Salário normativo da categoria profissional | C36: 780
A37: 3 | B37: Categoria profissional | C37: Servente de limpeza
A38: 4 | B38: Data base da categoria | C38: 1º de janeiro 2013
A39: Módulo 1: Composição da Remuneração
A41: 1 | B41: Composição da Remuneração | D41: Valor (R$)
A42: A | B42: Salário Base | D42: 780
A43: B | B43: Adicional de periculosidade | C43: 0 | D43: 0
A44: C | B44: Adicional de insalubridade | C44: 0 | D44: 0
A45: D | B45: Intervalo intrajornada | C45: 0 | D45: 0
A46: E | B46: Outros | C46: 0 | D46: 0
A47: Total da Remuneração | D47: =SUM(D42:D46) -> 780
A49: Módulo 2: Benefícios Mensais e diários
A51: 2 | B51: Benefícios Mensais e Diários | D51: Valor (R$)
A52: A | B52: Transporte (R$ 5,00 x 2 vales x 26 dias) - (R$ 780 x 6%) | D52: =(26*5*2)-(D47*0.06) -> 213.2
A53: C | B53: Auxílio alimentação (R$ 18,00 x 22 dias) | D53: =18*22 -> 396
A54: D | B54: Assistência médica e odontológica * (CCT 2013) | D54: 4
A55: E | B55: Auxílio creche | C55: 0 | D55: 0
A56: F | B56: Seguro de vida* | C56: 0 | D56: 0
A57: G | B57: Auxílio invalidez* | C57: 0 | D57: 0
A58: H | B58: Auxílio funeral | D58: 0
A59: I | B59: Outros | D59: 0
A60: Total de benefícios mensais e diários | D60: =SUM(D52:D59) -> 613.2
A62: Módulo 3: Insumos Diversos
A64: 3 | B64: Insumos diversos | D64: Valor (R$)
A65: A | B65: Uniformes | D65: 37.64
A66: B | B66: Materiais | D66: 491.55
A67: C | B67: Equipamentos | D67: 14.93
A68: D | B68: Outros | D68: 0
A69: Total de Insumos Diversos | D69: =SUM(D65:D68) -> 544.12
A71: Módulo 4: Encargos Sociais e Trabalhistas
A73: Submódulo 4.1 – Encargos previdenciários e FGTS
A74: 4.1 | B74: Encargos previdenciários e FGTS | C74: % | D74: Valor (R$)
A75: A | B75: INSS | C75: 0.2 | D75: =D47*0.2 -> 156
A76: B | B76: SESI OU SESC | C76: 0.015 | D76: =D47*0.015 -> 11.7
A77: C | B77: SENAI OU SENAC | C77: 0.01 | D77: =D47*0.01 -> 7.8
A78: D | B78: INCRA | C78: 0.002 | D78: =D47*0.002 -> 1.56
A79: E | B79: Salário Educação | C79: 0.025 | D79: =D47*0.025 -> 19.5
A80: F | B80: FGTS | C80: 0.08 | D80: =D47*0.08 -> 62.4
A81: G | B81: Seguro Acidente de Trabalho (decreto 6042/2007) | C81: 0.03 | D81: =D47*0.03 -> 23.4
A82: H | B82: SEBRAE | C82: 0.006 | D82: =D47*0.006 -> 4.68
A83: Total | C83: =SUM(C75:C82) ->  | D83: =SUM(D75:D82) -> 287.04
A85: Submódulo 4.2 – 13º salário e Adicional de Férias
A87: 4.2 | B87: 13º Salário e Adicional de Férias | D87: Valor (R$)
A88: A | B88: 13º Salário - Manual MPOG | C88: =5/56 -> 0.08928571429 | D88: =C88*D47 -> 69.64285714
A89: B | B89: Adicional de Férias Manual MPOG | C89: =1/3*(5/56) -> 0.02976190476 | D89: =D47*C89 -> 23.21428571
B90: Subtotal | C90: =SUM(C88:C89) ->  | D90: =SUM(D88:D89) -> 92.85714286
A91: C | B91: Incidência do Submódulo 4.1 sobre 13º salário e adicional de férias | C91: =C83*C90 -> 0.04380952381 | D91: =D90*C91 -> 4.068027211
A92: Total | C92: =SUM(C90:C91) ->  | D92: =SUM(D88:D91) -> 189.7823129
A96: Submódulo 4.3 – Afastamento Maternidade
A98: 4.3 | B98: Afastamento Maternidade | D98: Valor (R$)
A99: A | B99: Afastamento Maternidade (CCT 2013) | C99: 0.0065 | D99: =D47*C99 -> 5.07
A100: B | B100: Incidência do submódulo 4.1 sobre afastamento maternidade | C100: =C83*C99 -> 0.002392 | D100: =D99*C100 -> 0.01212744
A101: Total | C101: =SUM(C99:C100) ->  | D101: =SUM(D99:D100) -> 5.08212744
A103: Submódulo 4.4 – Provisão para Rescisão
A105: 4.4 | B105: Provisão para Rescisão | D105: Valor (R$)
A106: A | B106: Aviso prévio Indenizado (Portaria nº 7 da IN nº2/2008) | C106: =1/12*(0.05) -> 0.004166666667 | D106: =D47*C106 -> 3.25
A107: B | B107: Incidência do FGTS sobre aviso prévio indenizado (provisão para rescisão) | C107: =C80*C106 -> 0.0003333333333 | D107: =D47*C107 -> 0.26
A108: C | B108: Multa do FGTS do aviso prévio indenizado (Manual MPOG) | C108: =0.08*0.5*0.9*(1+5/56+5/56+((1/3)*(5/56))) -> 0.0435 | D108: =D47*C108 -> 33.93
A109: D | B109: Aviso prévio trabalhado Manual MPOG | C109: =((7/30)/12)*0.02 -> 0.0003888888889 | D109: =D47*C109 -> 0.3033333333
A110: E | B110: Incidência do submódulo 4.1 sobre aviso prévio trabalhado | C110: =C83*C109 -> 0.0001431111111 | D110: =D109*C110 -> 4.341037037e-05
A111: F | B111: Multa FGTS do aviso prévio trabalhado | C111: =(0.4+0.1)*0.08 -> 0.04 | D111: =D47*C111 -> 31.2
A112: Total | C112: =SUM(C106:C111) ->  | D112: =SUM(D106:D111) -> 68.94337674
A114: Submódulo 4.5 – Custo de Reposição do Profissional Ausente
A116: 4.5 | B116: Composição do custo de Reposição do Profissional Ausente | D116: Valor (R$)
A117: A | B117: Férias (Portaria nº 7 da IN nº2/2008) | C117: =5/56 -> 0.08928571429 | D117: =D47*C117 -> 69.64285714
A118: B | B118: Ausência por doença (Portaria nº 7 da IN nº2/2008) | C118: =(5.96/30)/12 -> 0.01655555556 | D118: =D47*C118 -> 12.91333333
A119: C | B119: Licença paternidade (Portaria nº 7 da IN nº2/2008) | C119: =((5/30)/12)*0.015 -> 0.0002083333333 | D119: =D47*C119 -> 0.1625
A120: D | B120: Ausências legais | C120: =(2.96/30)*(1/12) -> 0.008222222222 | D120: =D47*C120 -> 6.413333333
A121: E | B121: Ausência por acidente de trabalho | C121: =((15/30)/12)*0.0078 -> 0.000325 | D121: =D47*C121 -> 0.2535
A122: F | B122: Outros | C122: 0 | D122: =SUM(D117:D121) -> 89.38552381
A123: Subtotal | C123: =SUM(C117:C122) ->  | D123: =SUM(D117:D122) -> 178.7710476
A124: G | B124: Incidência do submódulo 4.1 sobre o Custo de reposição | C124: =C83*C123 -> 0.04217163175 | D124: =D123*C124 -> 7.539066787
A125: Total | C125: =SUM(C123:C124) ->  | D125: =SUM(D123:D124) -> 186.3101144
A127: Quadro – resumo – Módulo 4 – Encargos sociais e trabalhistas
A129: 4 | B129: Encargos Sociais e Trabalhistas | D129: Valor (R$)
A130: 4.1 | B130: 13º salário+Adicional de Férias | D130: =D92 -> 189.7823129
A131: 4.2 | B131: Encargos Previdenciários e FGTS | D131: =D83 -> 287.04
A132: 4.3 | B132: Afastamento Maternidade | D132: =D101 -> 5.08212744
A133: 4.4 | B133: Custo de Rescisão | D133: =D112 -> 68.94337674
A134: 4.5 | B134: Custo de Reposição do Profissional Ausente | D134: =D125 -> 186.3101144
A135: 4.6 | B135: Outros | D135: 0
A136: Total | D136: =SUM(D130:D135) -> 737.1579315
A138: Módulo 5: Custos indiretos, tributos e lucro
A140: 5 | B140: Custos Indiretos, Tributos e Lucro | C140: % | D140: Valor (R$)
A141: A | B141: Custos Indiretos (Portaria nº 7 da IN nº2/2008) | C141: 0.03 | D141: =D159*C141 -> 80.23433795
A142: B | B142: Tributos
B143: B.1 Tributos Federais
B144: B.1.1 PIS | C144: 0.0165 | D144: =((D159+D141+D149)*C144)/(1-C144) -> 49.35332419
B145: B.1.2 COFINS | C145: 0.076 | D145: =((D159+D141+D149)*C145)/(1-C145) -> 241.9627161
B146: B.2 Tributos Estaduais (ISS) | C146: 0.05 | D146: =((D159+D141+D149)*C146)/(1-C146) -> 154.829328
B147: B.3 Tributos Municipais | D147: 0
B148: B.4 Outros Tributos | D148: 0
A149: C | B149: Lucro | C149: 0.0679 | D149: =(D159+D141)*C149 -> 187.0449631
A150: Total | D150: =SUM(D141:D149) -> 713.4246694
A152: Anexo III –B – Quadro-resumo do custo por empregado
A154: Mão-de-obra vinculada à execução contratual (valor por empregado) | D154: Valor (R$)
A155: A | B155: Módulo 1- Composição da Remuneração | D155: =D47 -> 780
A156: B | B156: Módulo 2- Benefícios Mensais e Diários | D156: =D60 -> 613.2
A157: C | B157: Módulo 3- Insumos Diversos (uniformes, materiais, equipamentos e outros) | D157: =D69 -> 544.12
A158: D | B158: Módulo 4- Encargos Sociais e Trabalhistas | D158: =D136 -> 737.1579315
A159: Subtotal (A+B+C+D) | D159: =SUM(D155:D158) -> 2674.477932
A160: E | B160: Módulo 5 – Custos indiretos, tributos e lucro | D160: =D150 -> 713.4246694
A161: Valor total por empregado | D161: =SUM(D159:D160) -> 3387.902601
A163: Anexo III –C – Quadro-resumo – Valor Mensal dos Serviços
A165: Tipo de serviço | C165: Valor proposto por empregado (B) | D165: Qtde de empregados por posto | E165: Valor proposto por posto | F165: Qtde e postos | G165: Valor total dos serviços
A166: (A) | D166: (C) | E166: (D)=(BXC) | F166: (E) | G166: (F)=(DxE)
A167: I | B167: Serviço 1 | C167: =D161 -> 3387.902601 | D167: 23 | E167: =C167*D167 ->  | F167: 1 | G167: =E167*F167 -> 
A168: II | B168: Serviço 2 (indicar) | C168: R$ | E168: R$ | G168: R$
A170: Valor mensal dos serviços (I+II) | G170: =SUM(G167:G169) -> 
A172: Anexo III –D – Quadro-demonstrativo – Valor Global da proposta
A174: Valor global da proposta
B175: Descrição | C175: Valor (R$)
A176: A | B176: Valor proposto por unidade de medida | C176: =E167 -> 
A177: B | B177: Valor mensal do serviço | C177: =E167 -> 
A178: C | B178: Valor global da proposta (valor mensal do serviço x nº meses do contrato) | C178: =C177*12 -> 

Sheet Copeira
A1: ANEXO B
A3: PLANILHAS DE PROPOSTA DE PREÇO
A4: Planilha de Proposta de Preço
A5: Processo nº:
A6: Licitação nº___________ Pregão Eletrônico nº ____/2013
A7: Dia _______/_____________/____________ às _____:_____ horas
A8: Data da apresentação da proposta ___/___/2013
A9: Município/UF: Brasília/ DF
A10: Ano Acordo, Convenção Coletiva ou Sentença Normativa em Dissídio Coletivo. 2013
A11: Nº de meses de execução contratual: 12 meses
A12: Item | B12: Posto | C12: Custo Estimado por posto | D12: Quantidade de postos | E12: Valor mensal | F12: Valor anual
A13: 2 | B13: Copeiragem | C13: =E166 ->  | D13: 1 | E13: =C174 ->  | F13: =C175 -> 204197.5218
A14: Total Item 1
A17: E | B17: RESPONSÁVEL PELO PROJETO
B18: Unidade de Serviços Auxiliares.
A20: PLANILHA DE COMPOSIÇÃO DE CUSTOS E FORMAÇÃO DE PREÇOS
A22: MÃO-DE-OBRA VINCULADA À EXECUÇÃO CONTRATUAL
A24: Planilha de Proposta de Preço
A25: Processo nº:
A26: Licitação nº_________ Pregão Eletrônico nº ____/2013
A27: Dia _______/_____________/____________ às _____:_____ horas
A29: A | B29: Data da apresentação da proposta | C29: ___/___/2013
A30: B | B30: Município/UF | C30: Brasília/ DF
A31: C | B31: Ano Acordo, Convenção Coletiva ou Sentença Normativa em Dissídio Coletivo. | C31: 2013
A32: D | B32: Nº de meses de execução contratual | C32: 12 meses
A34: Mão-de-obra vinculada à execução contratual
A35: Dados complementares para composição dos custos referente à mão-de-obra
A36: 1 | B36: Tipo de serviço | C36: Limpeza e conservação
A37: 2 | B37: Salário normativo da categoria profissional | C37: 780
A38: 3 | B38: Categoria profissional | C38: Copeira
A39: 4 | B39: Data base da categoria | C39: 1º de janeiro 2013
A40: Módulo 1: Composição da Remuneração
A42: 1 | B42: Composição da Remuneração | D42: Valor (R$)
A43: A | B43: Salário Base | D43: 780
A44: B | B44: Adicional de periculosidade | C44: 0 | D44: 0
A45: C | B45: Adicional de insalubridade | C45: 0 | D45: 0
A46: D | B46: Intervalo intrajornada | C46: 0 | D46: 0
A47: E | B47: Outros | C47: 0 | D47: 0
A48: Total da Remuneração | D48: =SUM(D43:D47) -> 780
A50: Módulo 2: Benefícios Mensais e diários
A52: 2 | B52: Benefícios Mensais e Diários | D52: Valor (R$)
A53: A | B53: Transporte (R$ 5,00 x 2 vales x 22 dias) - (R$ 780,00 x 6%) | D53: =(5*2*22)-(D48*0.06) -> 173.2
A54: C | B54: Auxílio alimentação (R$ 18,00 x 22 dias) | D54: =18*22 -> 396
A55: D | B55: Assistência médica e odontológica (CCT 2013) | D55: 4
A56: E | B56: Auxílio creche | C56: 0 | D56: 0
A57: F | B57: Seguro de vida | C57: 0 | D57: 0
A58: G | B58: Auxílio invalidez | C58: 0 | D58: 0
A59: H | B59: Auxílio funeral | D59: 0
A60: I | B60: Outros | D60: 0
A61: Total de benefícios mensais e diários | D61: =SUM(D53:D60) -> 573.2
A63: Módulo 3: Insumos Diversos
A65: 3 | B65: Insumos diversos | D65: Valor (R$)
A66: A | B66: Uniformes | D66: 74.58
A67: B | B67: Materiais | D67: 74.27
A68: C | B68: Equipamentos | D68: 0
A69: D | B69: Outros | D69: 0
A70: Total de Insumos Diversos | D70: =SUM(D66:D69) -> 148.85
A72: Módulo 4: Encargos Sociais e Trabalhistas
A74: Submódulo 4.1 – Encargos previdenciários e FGTS
A75: 4.1 | B75: Encargos previdenciários e FGTS | C75: % | D75: Valor (R$)
A76: A | B76: INSS | C76: 0.2 | D76: =D48*C76 -> 156
A77: B | B77: SESI OU SESC | C77: 0.015 | D77: =D48*C77 -> 11.7
A78: C | B78: SENAI OU SENAC | C78: 0.01 | D78: =D48*C78 -> 7.8
A79: D | B79: INCRA | C79: 0.002 | D79: =D48*C79 -> 1.56
A80: E | B80: Salário Educação | C80: 0.025 | D80: =D48*C80 -> 19.5
A81: F | B81: FGTS | C81: 0.08 | D81: =D48*C81 -> 62.4
A82: G | B82: Seguro Acidente de Trabalho (decreto 6042/2007) | C82: 0.03 | D82: =D48*C82 -> 23.4
A83: H | B83: SEBRAE | C83: 0.006 | D83: =D48*C83 -> 4.68
A84: Total | C84: =SUM(C76:C83) ->  | D84: =SUM(D76:D83) -> 287.04
A86: Submódulo 4.2 – 13º salário e Adicional de Férias
A88: 4.2 | B88: 13º Salário e Adicional de Férias | D88: Valor (R$)
A89: A | B89: 13º Salário Manual MPOG | C89: =5/56 -> 0.08928571429 | D89: =D48*C89 -> 69.64285714
A90: B | B90: Adicional de Férias (índice UNB) | C90: =1/3*(5/56) -> 0.02976190476 | D90: =D48*C90 -> 23.21428571
B91: Subtotal | C91: =SUM(C89:C90) ->  | D91: =SUM(D89:D90) -> 92.85714286
A92: C | B92: Incidência do Submódulo 4.1 sobre 13º salário e adicional de férias | C92: =C84*C91 -> 0.04380952381 | D92: =D91*C92 -> 4.068027211
A93: Total | C93: =SUM(C91:C92) ->  | D93: =SUM(D89:D92) -> 189.7823129
A95: Submódulo 4.3 – Afastamento Maternidade
A97: 4.3 | B97: Afastamento Maternidade | D97: Valor (R$)
A98: A | B98: Afastamento Maternidade (CCT 2013) | C98: 0.0065 | D98: =D48*C98 -> 5.07
A99: B | B99: Incidência do submódulo 4.1 sobre afastamento maternidade | C99: =C84*C98 -> 0.002392 | D99: =D98*C99 -> 0.01212744
A100: Total | C100: =SUM(C98:C99) ->  | D100: =SUM(D98:D99) -> 5.08212744
A102: Submódulo 4.4 – Provisão para Rescisão
A104: 4.4 | B104: Provisão para Rescisão | D104: Valor (R$)
A105: A | B105: Aviso prévio Indenizado (Portaria nº 7 da IN nº2/2008) | C105: =1/12*(0.05) -> 0.004166666667 | D105: =D48*C105 -> 3.25
A106: B | B106: Incidência do FGTS sobre aviso prévio indenizado (provisão para rescisão) | C106: =C81*C105 -> 0.0003333333333 | D106: =D48*C106 -> 0.26
A107: C | B107: Multa do FGTS do aviso prévio indenizado (Manual MPOG) | C107: =0.08*0.5*0.9*(1+5/56+5/56+((1/3)*(5/56))) -> 0.0435 | D107: =D48*C107 -> 33.93
A108: D | B108: Aviso prévio trabalhado (manual MPOG) | C108: =((7/30)/12)*0.02 -> 0.0003888888889 | D108: =D48*C108 -> 0.3033333333
A109: E | B109: Incidência do submódulo 4.1 sobre aviso prévio trabalhado | C109: =C84*C108 -> 0.0001431111111 | D109: =D108*C109 -> 4.341037037e-05
A110: F | B110: Multa FGTS do aviso prévio trabalhado | C110: =(0.4+0.1)*0.08 -> 0.04 | D110: =D48*C110 -> 31.2
A111: Total | C111: =SUM(C105:C110) ->  | D111: =SUM(D105:D110) -> 68.94337674
A113: Submódulo 4.5 – Custo de Reposição do Profissional Ausente
A115: 4.5 | B115: Composição do custo de Reposição do Profissional Ausente | D115: Valor (R$)
A116: A | B116: Férias (Portaria nº 7 da IN nº2/2008) | C116: =5/56 -> 0.08928571429 | D116: =D48*C116 -> 69.64285714
A117: B | B117: Ausência por doença (Portaria nº 7 da IN nº2/2008) | C117: =(5.96/30)/12 -> 0.01655555556 | D117: =D48*C117 -> 12.91333333
A118: C | B118: Licença paternidade (Portaria nº 7 da IN nº2/2008) | C118: 0 | D118: =D48*C118 -> 0
A119: D | B119: Ausências legais | C119: =(2.96/30)*(1/12) -> 0.008222222222 | D119: =D48*C119 -> 6.413333333
A120: E | B120: Ausência por acidente de trabalho | C120: =((15/30)/12)*0.0078 -> 0.000325 | D120: =D48*C120 -> 0.2535
A121: F | B121: Outros | C121: 0 | D121: =SUM(D116:D120) -> 89.22302381
A122: Subtotal | C122: =SUM(C116:C121) ->  | D122: =SUM(D116:D121) -> 178.4460476
A123: G | B123: Incidência do submódulo 4.1 sobre o Custo de reposição | C123: =C84*C122 -> 0.04209496508 | D123: =D122*C123 -> 7.511680143
A124: Total | C124: =SUM(C122:C123) ->  | D124: =SUM(D122:D123) -> 185.9577278
A126: Quadro – resumo – Módulo 4 – Encargos sociais e trabalhistas
A128: 4 | B128: Encargos Sociais e Trabalhistas | D128: Valor (R$)
A129: 4.1 | B129: 13º salário+Adicional de Férias | D129: =D93 -> 189.7823129
A130: 4.2 | B130: Encargos Previdenciários e FGTS | D130: =D84 -> 287.04
A131: 4.3 | B131: Afastamento Maternidade | D131: =D100 -> 5.08212744
A132: 4.4 | B132: Custo de Rescisão | D132: =D111 -> 68.94337674
A133: 4.5 | B133: Custo de Reposição do Profissional Ausente | D133: =D124 -> 185.9577278
A134: 4.6 | B134: Outros | D134: 0
A135: Total | D135: =SUM(D129:D134) -> 736.8055449
A137: Módulo 5: Custos indiretos, tributos e lucro
A139: 5 | B139: Custos Indiretos, Tributos e Lucro | C139: % | D139: Valor (R$)
A140: A | B140: Custos Indiretos (Portaria nº 7 da IN nº2/2008) | C140: 0.03 | D140: =D158*C140 -> 67.16566635
A141: B | B141: Tributos
A142: B.1 | B142: B.1 Tributos Federais
A143: B.1.1 | B143: B.1.1 PIS | C143: 0.0165 | D143: =((D158+D140+D148)*C143)/(1-C143) -> 41.31459161
A144: B.1.2 | B144: B.1.2 COFINS | C144: 0.076 | D144: =((D158+D140+D148)*C144)/(1-C144) -> 202.5515194
A145: B.2 | B145: B.2 Tributos Estaduais (ISS) | C145: 0.05 | D145: =((D158+D140+D148)*C145)/(1-C145) -> 129.610529
A146: B.3 | B146: B.3 Tributos Municipais | D146: 0
A147: B.4 | B147: B.4 Outros Tributos | D147: 0
A148: C | B148: Lucro | C148: 0.0679 | D148: =(D158+D140)*C148 -> 156.5788402
A149: Total | D149: =SUM(D140:D148) -> 597.2211466
A151: Anexo III –B – Quadro-resumo do custo por empregado
A153: Mão-de-obra vinculada à execução contratual (valor por empregado) | D153: Valor (R$)
A154: A | B154: Módulo 1- Composição da Remuneração | D154: =D48 -> 780
A155: B | B155: Módulo 2- Benefícios Mensais e Diários | D155: =D61 -> 573.2
A156: C | B156: Módulo 3- Insumos Diversos (uniformes, materiais, equipamentos e outros) | D156: =D70 -> 148.85
A157: D | B157: Módulo 4- Encargos Sociais e Trabalhistas | D157: =D135 -> 736.8055449
A158: Subtotal (A+B+C+D) | D158: =SUM(D154:D157) -> 2238.855545
A159: E | B159: Módulo 5 – Custos indiretos, tributos e lucro | D159: =D149 -> 597.2211466
A160: Valor total por empregado | D160: =SUM(D158:D159) -> 2836.076691
A162: Anexo III –C – Quadro-resumo – Valor Mensal dos Serviços
A164: Tipo de serviço | C164: Valor proposto por empregado (B) | D164: Qtde de empregados por posto | E164: Valor proposto por posto | F164: Qtde e postos | G164: Valor total dos serviços
A165: (A) | D165: (C) | E165: (D)=(BXC) | F165: (E) | G165: (F)=(DxE)
A166: I | B166: Serviço 1 | C166: =D160 -> 2836.076691 | D166: 6 | E166: =C166*D166 ->  | F166: 1 | G166: =E166*F166 -> 
A167: Valor mensal dos serviços (I+II) | G167: =SUM(G166:G166) -> 
A169: Anexo III –D – Quadro-demonstrativo – Valor Global da proposta
A171: Valor global da proposta
B172: Descrição | C172: Valor (R$)
A173: A | B173: Valor proposto por unidade de medida | C173: =E166 -> 
A174: B | B174: Valor mensal do serviço | C174: =E166 -> 
A175: C | B175: Valor global da proposta (valor mensal do serviço x nº meses do contrato) | C175: =C174*12 -> 

Sheet Encarregado
A1: ANEXO A
A3: PLANILHAS DE PROPOSTA DE PREÇO
A4: Planilha de Proposta de Preço
A5: Processo nº:
A6: Licitação nº___________ Pregão Eletrônico nº ____/2013
A7: Dia _______/_____________/____________ às _____:_____ horas
A8: Data da apresentação da proposta ___/___/2013
A9: Município/UF: Brasília/ DF
A10: Ano Acordo, Convenção Coletiva ou Sentença Normativa em Dissídio Coletivo. 2013
A11: Nº de meses de execução contratual: 12 meses
A12: Item | B12: Posto | C12: Custo Estimado por posto | D12: Quantidade de postos | E12: Valor mensal | F12: Valor anual
A13: 2 | B13: Encarregado | C13: =E166 ->  | D13: 1 | E13: =C174 ->  | F13: =C175 -> 71457.96936
A14: Total Item 1
A17: E | B17: RESPONSÁVEL PELO PROJETO
B18: Unidade de Serviços Auxiliares.
A20: PLANILHA DE COMPOSIÇÃO DE CUSTOS E FORMAÇÃO DE PREÇOS
A22: MÃO-DE-OBRA VINCULADA À EXECUÇÃO CONTRATUAL
A24: Planilha de Proposta de Preço
A25: Processo nº:
A26: Licitação nº_________ Pregão Eletrônico nº ____/2013
A27: Dia _______/_____________/____________ às _____:_____ horas
A29: A | B29: Data da apresentação da proposta | C29: ___/___/2013
A30: B | B30: Município/UF | C30: Brasília/ DF
A31: C | B31: Ano Acordo, Convenção Coletiva ou Sentença Normativa em Dissídio Coletivo. | C31: 2013
A32: D | B32: Nº de meses de execução contratual | C32: 12 meses
A34: Mão-de-obra vinculada à execução contratual
A35: Dados complementares para composição dos custos referente à mão-de-obra
A36: 1 | B36: Tipo de serviço | C36: Limpeza e conservação
A37: 2 | B37: Salário normativo da categoria profissional | C37: 2104.55
A38: 3 | B38: Categoria profissional | C38: Encarregado Geral
A39: 4 | B39: Data base da categoria | C39: 1º de janeiro de 2013
A40: Módulo 1: Composição da Remuneração
A42: 1 | B42: Composição da Remuneração | D42: Valor (R$)
A43: A | B43: Salário Base | D43: =C37 -> 2104.55
A44: B | B44: Adicional de periculosidade | C44: 0 | D44: 0
A45: C | B45: Adicional de insalubridade | C45: 0 | D45: 0
A46: D | B46: Intervalo intrajornada | C46: 0 | D46: 0
A47: E | B47: Outros | C47: 0 | D47: 0
A48: Total da Remuneração | D48: =SUM(D43:D47) -> 2104.55
A50: Módulo 2: Benefícios Mensais e diários
A52: 2 | B52: Benefícios Mensais e Diários | D52: Valor (R$)
A53: A | B53: Transporte (R$ 5,00 x 2 vales x 26 dias) - (R$ 2104,55 x 6%) | D53: =(5*2*26)-(D48*0.06) -> 133.727
A54: C | B54: Auxílio alimentação (R$ 18,00 x 22 dias) | D54: =18*22 -> 396
A55: D | B55: Assistência médica e odontológica (CCT 2013) | D55: 4
A56: E | B56: Auxílio creche | C56: 0 | D56: 0
A57: F | B57: Seguro de vida | C57: 0 | D57: 0
A58: G | B58: Auxílio invalidez | C58: 0 | D58: 0
A59: H | B59: Auxílio funeral | D59: 0
A60: I | B60: Outros | D60: 0
A61: Total de benefícios mensais e diários | D61: =SUM(D53:D60) -> 533.727
A63: Módulo 3: Insumos Diversos
A65: 3 | B65: Insumos diversos | D65: Valor (R$)
A66: A | B66: Uniformes | D66: 74.58
A67: B | B67: Materiais | D67: 0
A68: C | B68: Equipamentos | D68: 0
A69: D | B69: Outros | D69: 0
A70: Total de Insumos Diversos | D70: =SUM(D66:D69) -> 74.58
A72: Módulo 4: Encargos Sociais e Trabalhistas
A74: Submódulo 4.1 – Encargos previdenciários e FGTS
A75: 4.1 | B75: Encargos previdenciários e FGTS | C75: % | D75: Valor (R$)
A76: A | B76: INSS | C76: 0.2 | D76: =D48*C76 -> 420.91
A77: B | B77: SESI OU SESC | C77: 0.015 | D77: =D48*C77 -> 31.56825
A78: C | B78: SENAI OU SENAC | C78: 0.01 | D78: =D48*C78 -> 21.0455
A79: D | B79: INCRA | C79: 0.002 | D79: =D48*C79 -> 4.2091
A80: E | B80: Salário Educação | C80: 0.025 | D80: =D48*C80 -> 52.61375
A81: F | B81: FGTS | C81: 0.08 | D81: =D48*C81 -> 168.364
A82: G | B82: Seguro Acidente de Trabalho (decreto 6042/2007) | C82: 0.03 | D82: =D48*C82 -> 63.1365
A83: H | B83: SEBRAE | C83: 0.006 | D83: =D48*C83 -> 12.6273
A84: Total | C84: =SUM(C76:C83) ->  | D84: =SUM(D76:D83) -> 774.4744
A86: Submódulo 4.2 – 13º salário e Adicional de Férias
A88: 4.2 | B88: 13º Salário e Adicional de Férias | D88: Valor (R$)
A89: A | B89: 13º Salário Manual MPOG | C89: =5/56 -> 0.08928571429 | D89: =D48*C89 -> 187.90625
A90: B | B90: Adicional de Férias (Manual MPOG) | C90: =1/3*(5/56) -> 0.02976190476 | D90: =D48*C90 -> 62.63541667
B91: Subtotal | C91: =SUM(C89:C90) ->  | D91: =SUM(D89:D90) -> 250.5416667
A92: C | B92: Incidência do Submódulo 4.1 sobre 13º salário e adicional de férias | C92: =C84*C91 -> 0.04380952381 | D92: =D91*C92 -> 10.97611111
A93: Total | C93: =SUM(C91:C92) ->  | D93: =SUM(D89:D92) -> 512.0594444
A95: Submódulo 4.3 – Afastamento Maternidade
A97: 4.3 | B97: Afastamento Maternidade | D97: Valor (R$)
A98: A | B98: Afastamento Maternidade (CCT 2013) | C98: 0.0065 | D98: =D48*C98 -> 13.679575
A99: B | B99: Incidência do submódulo 4.1 sobre afastamento maternidade | C99: =C84*C98 -> 0.002392 | D99: =D98*C99 -> 0.0327215434
A100: Total | C100: =SUM(C98:C99) ->  | D100: =SUM(D98:D99) -> 13.71229654
A102: Submódulo 4.4 – Provisão para Rescisão
A104: 4.4 | B104: Provisão para Rescisão | D104: Valor (R$)
A105: A | B105: Aviso prévio Indenizado (Portaria nº 7 da IN nº2/2008) | C105: =1/12*(0.05) -> 0.004166666667 | D105: =D48*C105 -> 8.768958333
A106: B | B106: Incidência do FGTS sobre aviso prévio indenizado (provisão para rescisão) | C106: =C81*C105 -> 0.0003333333333 | D106: =D48*C106 -> 0.7015166667
A107: C | B107: Multa do FGTS do aviso prévio indenizado (Manual MPOG) | C107: =0.08*0.5*0.9*(1+5/56+5/56+((1/3)*(5/56))) -> 0.0435 | D107: =D48*C107 -> 91.547925
A108: D | B108: Aviso prévio trabalhado (manual MPOG) | C108: =((7/30)/12)*0.02 -> 0.0003888888889 | D108: =D48*C108 -> 0.8184361111
A109: E | B109: Incidência do submódulo 4.1 sobre aviso prévio trabalhado | C109: =C84*C108 -> 0.0001431111111 | D109: =D108*C109 -> 0.0001171273012
A110: F | B110: Multa FGTS do aviso prévio trabalhado | C110: =(0.4+0.1)*0.08 -> 0.04 | D110: =D48*C110 -> 84.182
A111: Total | C111: =SUM(C105:C110) ->  | D111: =SUM(D105:D110) -> 186.0189532
A113: Submódulo 4.5 – Custo de Reposição do Profissional Ausente
A115: 4.5 | B115: Composição do custo de Reposição do Profissional Ausente | D115: Valor (R$)
A116: A | B116: Férias (Portaria nº 7 da IN nº2/2008) | C116: =5/56 -> 0.08928571429 | D116: =D48*C116 -> 187.90625
A117: B | B117: Ausência por doença (Portaria nº 7 da IN nº2/2008) | C117: =(5.96/30)/12 -> 0.01655555556 | D117: =D48*C117 -> 34.84199444
A118: C | B118: Licença paternidade (Portaria nº 7 da IN nº2/2008) | C118: 0 | D118: =D48*C118 -> 0
A119: D | B119: Ausências legais | C119: =(2.96/30)*(1/12) -> 0.008222222222 | D119: =D48*C119 -> 17.30407778
A120: E | B120: Ausência por acidente de trabalho | C120: =((15/30)/12)*0.0078 -> 0.000325 | D120: =D48*C120 -> 0.68397875
A121: F | B121: Outros | C121: 0 | D121: =SUM(D116:D120) -> 240.736301
A122: Subtotal | C122: =SUM(C116:C121) ->  | D122: =SUM(D116:D121) -> 481.4726019
A123: G | B123: Incidência do submódulo 4.1 sobre o Custo de reposição | C123: =C84*C122 -> 0.04209496508 | D123: =D122*C123 -> 20.26757237
A124: Total | C124: =SUM(C122:C123) ->  | D124: =SUM(D122:D123) -> 501.7401743
A126: Quadro – resumo – Módulo 4 – Encargos sociais e trabalhistas
A128: 4 | B128: Encargos Sociais e Trabalhistas | D128: Valor (R$)
A129: 4.1 | B129: 13º salário+Adicional de Férias | D129: =D93 -> 512.0594444
A130: 4.2 | B130: Encargos Previdenciários e FGTS | D130: =D84 -> 774.4744
A131: 4.3 | B131: Afastamento Maternidade | D131: =D100 -> 13.71229654
A132: 4.4 | B132: Custo de Rescisão | D132: =D111 -> 186.0189532
A133: 4.5 | B133: Custo de Reposição do Profissional Ausente | D133: =D124 -> 501.7401743
A134: 4.6 | B134: Outros | D134: 0
A135: Total | D135: =SUM(D129:D134) -> 1988.005269
A137: Módulo 5: Custos indiretos, tributos e lucro
A139: 5 | B139: Custos Indiretos, Tributos e Lucro | C139: % | D139: Valor (R$)
A140: A | B140: Custos Indiretos (Portaria nº 7 da IN nº2/2008) | C140: 0.03 | D140: =D158*C140 -> 141.0258681
A141: B | B141: Tributos
A142: B.1 | B142: B.1 Tributos Federais
A143: B.1.1 | B143: B.1.1 PIS (depende do regime de tributação) | C143: 0.0165 | D143: =((D158+D140+D148)*C143)/(1-C143) -> 86.74709062
A144: B.1.2 | B144: B.1.2 COFINS (depende do regime de tributação) | C144: 0.076 | D144: =((D158+D140+D148)*C144)/(1-C144) -> 425.291751
A145: B.2 | B145: B.2 Tributos Estaduais (ISS) | C145: 0.05 | D145: =((D158+D140+D148)*C145)/(1-C145) -> 272.1395969
A146: B.3 | B146: B.3 Tributos Municipais | D146: 0
A147: B.4 | B147: B.4 Outros Tributos | D147: 0
A148: C | B148: Lucro | C148: 0.0679 | D148: =(D158+D140)*C148 -> 328.7642045
A149: Total | D149: =SUM(D140:D148) -> 1253.968511
A151: Anexo III –B – Quadro-resumo do custo por empregado
A153: Mão-de-obra vinculada à execução contratual (valor por empregado) | D153: Valor (R$)
A154: A | B154: Módulo 1- Composição da Remuneração | D154: =D48 -> 2104.55
A155: B | B155: Módulo 2- Benefícios Mensais e Diários | D155: =D61 -> 533.727
A156: C | B156: Módulo 3- Insumos Diversos (uniformes, materiais, equipamentos e outros) | D156: =D70 -> 74.58
A157: D | B157: Módulo 4- Encargos Sociais e Trabalhistas | D157: =D135 -> 1988.005269
A158: Subtotal (A+B+C+D) | D158: =SUM(D154:D157) -> 4700.862269
A159: E | B159: Módulo 5 – Custos indiretos, tributos e lucro | D159: =D149 -> 1253.968511
A160: Valor total por empregado | D160: =SUM(D158:D159) -> 5954.83078
A162: Anexo III –C – Quadro-resumo – Valor Mensal dos Serviços
A164: Tipo de serviço | C164: Valor proposto por empregado (B) | D164: Qtde de empregados por posto | E164: Valor proposto por posto | F164: Qtde e postos | G164: Valor total dos serviços
A165: (A) | D165: (C) | E165: (D)=(BXC) | F165: (E) | G165: (F)=(DxE)
A166: I | B166: Serviço 1 | C166: =D160 -> 5954.83078 | D166: 1 | E166: =C166*D166 ->  | F166: 1 | G166: =E166*F166 -> 
A167: Valor mensal dos serviços (I+II) | G167: =SUM(G166:G166) -> 
A169: Anexo III –D – Quadro-demonstrativo – Valor Global da proposta
A171: Valor global da proposta
B172: Descrição | C172: Valor (R$)
A173: A | B173: Valor proposto por unidade de medida | C173: =E166 -> 
A174: B | B174: Valor mensal do serviço | C174: =E166 -> 
A175: C | B175: Valor global da proposta (valor mensal do serviço x nº meses do contrato) | C175: =C174*12 -> 

Sheet TOTAL
C3: Valor Mensal p/ Empregado | D3: Qtde. de Empregados | E3: Valor Mensal | F3: Valor Anual
B5: Encarregado | C5: 5954.83 | D5: 1 | E5: 5954.83 | F5: 71457.97
B7: Copeira | C7: =ROUND(Copeira!C166,2) -> 2836.08 | D7: 6 | E7: 17016.46 | F7: 204197.52
B9: Servente | C9: =ROUND(Serventes!C167,2) -> 3387.9 | D9: 23 | E9: 77921.76 | F9: 935061.12
B13: Marceneiro | C13: 3573.45 | D13: 1 | E13: 3573.45 | F13: 42881.37
B14: Bombeiro Hidráulico | C14: 3573.45 | D14: 1 | E14: 3573.45 | F14: 42881.37
B15: Total | F15: =SUM(F5:F14) -> 
F16: =SUM(F5:F15) -> 
